fUST/lending_fUST_20241123
["ID","MTS","AMOUNT","RATE_DAILY","PERIOD"]
[343127164,1732374649862,-912.61,0.00020546,2]
[343127165,1732374649872,-612.98,0.00020546,2]
[343127166,1732374649882,-500.0,0.00020546,2]
[343127167,1732374649892,-500.0,0.00020546,2]
[343127168,1732374649902,-500.0,0.00020546,2]
[343127169,1732374649912,-626.69,0.00020546,2]
[343127170,1732374649923,-500.0,0.00020546,2]
[343127171,1732374649932,-500.0,0.00020546,2]
[343127172,1732374649943,-550.36,0.00020546,2]
[343127173,1732374649953,-493.01944069,0.00020546,2]
[343127174,1732374649962,-500.0,0.00020546,2]
[343127175,1732374649971,-500.0,0.00020546,2]
[343127176,1732374649980,-2020.42,0.00020546,2]
[343127177,1732374649990,-501.66742962,0.00020573,2]
[343127178,1732374650000,-500.0,0.00020573,2]
[343127179,1732374650013,-754.812936,0.00020712,2]
[343127180,1732374650023,-655.61459262,0.00020719,2]
[343127181,1732374650032,-233.01590282,0.0002072,2]
[343127182,1732374650042,-500.0,0.00020818,2]
[343127183,1732374650052,-6575.11,0.00020818,2]
[343127184,1732374650061,-1627.77,0.00020818,2]
[343127185,1732374650070,-4864.52,0.00020818,2]
[343127186,1732374650080,-790.18,0.00020818,2]
[343127187,1732374650091,-1062.44,0.00020818,2]
[343127188,1732374650100,-500.0,0.00020818,2]
[343127189,1732374650110,-500.0,0.00020818,2]
[343127190,1732374650119,-28097.82,0.00020818,2]
[343127191,1732374650129,-500.0,0.00020819,2]
[343127192,1732374650139,-565.5,0.00020819,2]
[343127193,1732374650148,-500.0,0.00020819,2]
[343127194,1732374650158,-924.31,0.00020819,2]
[343127195,1732374650168,-500.0,0.00020819,2]
[343127196,1732374650177,-1065.21,0.00020819,2]
[343127197,1732374650187,-500.0,0.00020819,2]
[343127198,1732374650196,-500.0,0.00020819,2]
[343127199,1732374650206,-590.32,0.00020819,2]
[343127200,1732374650218,-500.0,0.00020819,2]
[343127201,1732374650235,-500.0,0.00020819,2]
[343127202,1732374650245,-500.0,0.00020819,2]
[343127203,1732374650256,-772.55,0.00020819,2]
[343127204,1732374650266,-1429.5,0.00020819,2]
[343127205,1732374650276,-503.58,0.00020819,2]
[343127206,1732374650286,-794.5,0.00020819,2]
[343127207,1732374650296,-500.0,0.00020819,2]
[343127208,1732374650307,-500.0,0.0002082,2]
[343127209,1732374650317,-500.0,0.0002082,2]
[343127210,1732374650327,-1292.96,0.0002082,2]
[343127211,1732374650337,-500.0,0.0002082,2]
[343127212,1732374650437,-500.0,0.0002082,2]
[343127213,1732374650449,-866.31,0.0002082,2]
[343127214,1732374650459,-900.83,0.0002082,2]
[343127215,1732374650469,-500.0,0.0002082,2]
[343127216,1732374650478,-588.91,0.0002082,2]
[343127217,1732374650489,-500.0,0.0002082,2]
[343127218,1732374650498,-200.0,0.0002082,2]
[343127219,1732374650510,-500.0,0.0002082,2]
[343127220,1732374650519,-500.0,0.0002082,2]
[343127221,1732374650528,-500.0,0.0002082,2]
[343127222,1732374650538,-756.3,0.0002082,2]
[343127223,1732374650547,-500.0,0.0002082,2]
[343127224,1732374650556,-599.9,0.0002082,2]
[343127225,1732374650566,-500.0,0.0002082,2]
[343127226,1732374650575,-1423.82,0.0002082,2]
[343127227,1732374650586,-919.07,0.0002082,2]
[343127228,1732374650595,-500.0,0.0002082,2]
[343127229,1732374650605,-882.73,0.0002082,2]
[343127230,1732374650615,-542.12,0.0002082,2]
[343127231,1732374650624,-500.0,0.0002082,2]
[343127232,1732374650634,-839.51,0.0002082,2]
[343127233,1732374650644,-564.68,0.0002082,2]
[343127234,1732374650654,-500.0,0.0002082,2]
[343127235,1732374650664,-516.89,0.0002082,2]
[343127236,1732374650673,-500.0,0.0002082,2]
[343127237,1732374650683,-500.0,0.0002082,2]
[343127238,1732374650693,-500.0,0.0002082,2]
[343127239,1732374650702,-530.03,0.0002082,2]
[343127240,1732374650712,-1200.49,0.0002082,2]
[343127241,1732374650722,-500.0,0.0002082,2]
[343127242,1732374650731,-701.18,0.0002082,2]
[343127243,1732374650740,-500.0,0.0002082,2]
[343127244,1732374650751,-500.0,0.0002082,2]
[343127245,1732374650762,-500.0,0.0002082,2]
[343127246,1732374650771,-500.0,0.0002082,2]
[343127247,1732374650781,-805.35,0.0002082,2]
[343127248,1732374650790,-500.0,0.0002082,2]
[343127249,1732374650800,-500.0,0.0002082,2]
[343127250,1732374650810,-702.98,0.0002082,2]
[343127251,1732374650819,-500.0,0.0002082,2]
[343127252,1732374650829,-500.0,0.0002082,2]
[343127253,1732374650839,-530.74,0.0002082,2]
[343127254,1732374650849,-500.0,0.0002082,2]
[343127255,1732374650859,-500.0,0.0002082,2]
[343127256,1732374650868,-500.0,0.0002082,2]
[343127257,1732374650878,-506.54,0.0002082,2]
[343127258,1732374650887,-500.0,0.0002082,2]
[343127259,1732374650897,-500.0,0.0002082,2]
[343127260,1732374650907,-500.0,0.0002082,2]
[343127261,1732374650916,-529.24,0.0002082,2]
[343127262,1732374650925,-504.27,0.0002082,2]
[343127263,1732374650935,-500.0,0.0002082,2]
[343127264,1732374650945,-763.16,0.0002082,2]
[343127265,1732374650956,-3725.55,0.0002082,2]
[343127266,1732374650966,-1363.25,0.0002082,2]
[343127267,1732374650976,-500.0,0.0002082,2]
[343127268,1732374650986,-623.97,0.0002082,2]
[343127269,1732374650995,-831.32,0.0002082,2]
[343127270,1732374651005,-500.0,0.0002082,2]
[343127271,1732374651017,-2196.85,0.0002082,2]
[343127272,1732374651027,-500.0,0.0002082,2]
[343127273,1732374651038,-1338.54,0.0002082,2]
[343127274,1732374651047,-772.07,0.0002082,2]
[343127275,1732374651056,-500.0,0.0002082,2]
[343127276,1732374651067,-1854.4,0.0002082,2]
[343127277,1732374651076,-504.74,0.0002082,2]
[343127278,1732374651086,-743.82,0.0002082,2]
[343127279,1732374651095,-500.0,0.0002082,2]
[343127280,1732374651104,-500.0,0.0002082,2]
[343127281,1732374651114,-665.84,0.0002082,2]
[343127282,1732374651123,-541.59,0.0002082,2]
[343127283,1732374651133,-500.0,0.0002082,2]
[343127284,1732374651142,-11883.1,0.0002082,2]
[343127285,1732374651152,-500.0,0.0002082,2]
[343127286,1732374651162,-550.75,0.0002082,2]
[343127287,1732374651172,-3492.86,0.0002082,2]
[343127288,1732374651181,-500.0,0.0002082,2]
[343127289,1732374651191,-500.0,0.0002082,2]
[343127290,1732374651201,-912.61,0.0002082,2]
[343127291,1732374651211,-612.98,0.0002082,2]
[343127292,1732374651220,-500.0,0.0002082,2]
[343127293,1732374651230,-500.0,0.0002082,2]
[343127294,1732374651240,-500.0,0.0002082,2]
[343127295,1732374651250,-626.69,0.0002082,2]
[343127296,1732374651261,-500.0,0.0002082,2]
[343127297,1732374651270,-500.0,0.0002082,2]
[343127298,1732374651280,-550.36,0.0002082,2]
[343127299,1732374651289,-500.0,0.0002082,2]
[343127300,1732374651299,-500.0,0.0002082,2]
[343127301,1732374651308,-2020.42,0.0002082,2]
[343127302,1732374651318,-754.812936,0.00020904,2]
[343127303,1732374651328,-3000.0,0.00021,2]
[343127304,1732374651339,-3000.0,0.0002101,2]
[343127305,1732374651348,-3000.0,0.0002102,2]
[343127306,1732374651361,-3000.0,0.0002103,2]
[343127307,1732374651371,-3000.0,0.0002104,2]
[343127308,1732374651383,-3000.0,0.0002105,2]
[343127309,1732374651392,-3000.0,0.0002106,2]
[343127310,1732374651402,-3000.0,0.0002107,2]
[343127311,1732374651411,-3000.0,0.0002108,2]
[343127312,1732374651421,-3000.0,0.0002109,2]
[343127313,1732374651432,-500.0,0.00021092,2]
[343127314,1732374651442,-6575.11,0.00021092,2]
[343127315,1732374651451,-1627.77,0.00021092,2]
[343127316,1732374651461,-4864.52,0.00021092,2]
[343127317,1732374651471,-790.18,0.00021092,2]
[343127318,1732374651481,-1062.44,0.00021092,2]
[343127319,1732374651490,-500.0,0.00021092,2]
[343127320,1732374651500,-500.0,0.00021092,2]
[343127321,1732374651511,-28097.82,0.00021092,2]
[343127322,1732374651520,-500.0,0.00021093,2]
[343127323,1732374651529,-565.5,0.00021093,2]
[343127324,1732374651538,-500.0,0.00021093,2]
[343127325,1732374651547,-924.31,0.00021093,2]
[343127326,1732374651556,-500.0,0.00021093,2]
[343127327,1732374651565,-1065.21,0.00021093,2]
[343127328,1732374651575,-500.0,0.00021093,2]
[343127329,1732374651584,-347.65414912,0.00021093,2]
[343127330,1732374651594,-590.32,0.00021093,2]
[343127331,1732374651605,-500.0,0.00021093,2]
[343127332,1732374651614,-500.0,0.00021093,2]
[343127333,1732374651623,-500.0,0.00021093,2]
[343127334,1732374651632,-772.55,0.00021093,2]
[343127335,1732374651641,-1429.5,0.00021093,2]
[343127336,1732374651651,-503.58,0.00021093,2]
[343127337,1732374651660,-794.5,0.00021093,2]
[343127338,1732374651669,-500.0,0.00021093,2]
[343127339,1732374651679,-500.0,0.00021094,2]
[343127340,1732374651689,-500.0,0.00021094,2]
[343127341,1732374651698,-1292.96,0.00021094,2]
[343127342,1732374651707,-500.0,0.00021094,2]
[343127343,1732374651716,-500.0,0.00021094,2]
[343127344,1732374651725,-866.31,0.00021094,2]
[343127345,1732374651734,-900.83,0.00021094,2]
[343127346,1732374651744,-500.0,0.00021094,2]
[343127347,1732374651754,-588.91,0.00021094,2]
[343127348,1732374651765,-500.0,0.00021094,2]
[343127349,1732374651774,-200.0,0.00021094,2]
[343127350,1732374651786,-500.0,0.00021094,2]
[343127351,1732374651795,-500.0,0.00021094,2]
[343127352,1732374651805,-500.0,0.00021094,2]
[343127353,1732374651815,-756.3,0.00021094,2]
[343127354,1732374651825,-500.0,0.00021094,2]
[343127355,1732374651834,-599.9,0.00021094,2]
[343127356,1732374651846,-500.0,0.00021094,2]
[343127357,1732374651856,-1423.82,0.00021094,2]
[343127358,1732374651866,-919.07,0.00021094,2]
[343127359,1732374651876,-500.0,0.00021094,2]
[343127360,1732374651885,-882.73,0.00021094,2]
[343127361,1732374651895,-542.12,0.00021094,2]
[343127362,1732374651905,-500.0,0.00021094,2]
[343127363,1732374651915,-839.51,0.00021094,2]
[343127364,1732374651924,-564.68,0.00021094,2]
[343127365,1732374651933,-500.0,0.00021094,2]
[343127366,1732374651942,-516.89,0.00021094,2]
[343127367,1732374651952,-500.0,0.00021094,2]
[343127368,1732374651962,-500.0,0.00021094,2]
[343127369,1732374651972,-152.64006937,0.00021094,2]
[343127370,1732374651982,-530.03,0.00021094,2]
[343127371,1732374651993,-1200.49,0.00021094,2]
[343127372,1732374652002,-500.0,0.00021094,2]
[343127373,1732374652013,-701.18,0.00021094,2]
[343127374,1732374652023,-500.0,0.00021094,2]
[343127375,1732374652032,-500.0,0.00021094,2]
[343127376,1732374652041,-500.0,0.00021094,2]
[343127377,1732374652050,-500.0,0.00021094,2]
[343127378,1732374652060,-805.35,0.00021094,2]
[343127379,1732374652069,-500.0,0.00021094,2]
[343127380,1732374652077,-500.0,0.00021094,2]
[343127381,1732374652085,-702.98,0.00021094,2]
[343127382,1732374652094,-500.0,0.00021094,2]
[343127383,1732374652104,-500.0,0.00021094,2]
[343127384,1732374652114,-530.74,0.00021094,2]
[343127385,1732374652122,-500.0,0.00021094,2]
[343127386,1732374652132,-500.0,0.00021094,2]
[343127387,1732374652141,-500.0,0.00021094,2]
[343127388,1732374652150,-506.54,0.00021094,2]
[343127389,1732374652160,-500.0,0.00021094,2]
[343127390,1732374652169,-500.0,0.00021094,2]
[343127391,1732374652179,-286.41726429,0.00021094,2]
[343127392,1732374652189,-529.24,0.00021094,2]
[343127393,1732374652198,-504.27,0.00021094,2]
[343127394,1732374652207,-500.0,0.00021094,2]
[343127395,1732374652217,-763.16,0.00021094,2]
[343127396,1732374652226,-3725.55,0.00021094,2]
[343127397,1732374652235,-1363.25,0.00021094,2]
[343127398,1732374652244,-500.0,0.00021094,2]
[343127399,1732374652254,-623.97,0.00021094,2]
[343127400,1732374652265,-831.32,0.00021094,2]
[343127401,1732374652274,-500.0,0.00021094,2]
[343127402,1732374652283,-2196.85,0.00021094,2]
[343127403,1732374652293,-500.0,0.00021094,2]
[343127404,1732374652302,-1338.54,0.00021094,2]
[343127405,1732374652311,-772.07,0.00021094,2]
[343127406,1732374652321,-500.0,0.00021094,2]
[343127407,1732374652330,-1854.4,0.00021094,2]
[343127408,1732374652342,-504.74,0.00021094,2]
[343127409,1732374652352,-743.82,0.00021094,2]
[343127410,1732374652361,-500.0,0.00021094,2]
[343127411,1732374652370,-500.0,0.00021094,2]
[343127412,1732374652380,-665.84,0.00021094,2]
[343127413,1732374652390,-541.59,0.00021094,2]
[343127414,1732374652399,-500.0,0.00021094,2]
[343127415,1732374652408,-11883.1,0.00021094,2]
[343127416,1732374652421,-550.75,0.00021094,2]
[343127417,1732374652430,-500.0,0.00021094,2]
[343127418,1732374652440,-3492.86,0.00021094,2]
[343127419,1732374652449,-500.0,0.00021094,2]
[343127420,1732374652459,-912.61,0.00021094,2]
[343127421,1732374652468,-295.74517073,0.00021094,2]
[343127422,1732374652477,-612.98,0.00021094,2]
[343127423,1732374652487,-500.0,0.00021094,2]
[343127424,1732374652496,-500.0,0.00021094,2]
[343127425,1732374652505,-500.0,0.00021094,2]
[343127426,1732374652518,-626.69,0.00021094,2]
[343127427,1732374652527,-500.0,0.00021094,2]
[343127428,1732374652536,-500.0,0.00021094,2]
[343127429,1732374652545,-550.36,0.00021094,2]
[343127430,1732374652554,-500.0,0.00021094,2]
[343127431,1732374652564,-500.0,0.00021094,2]
[343127432,1732374652573,-2020.42,0.00021094,2]
[343127433,1732374652583,-754.812936,0.00021096,2]
[343127434,1732374652592,-4045.28628,0.000211,2]
[343127435,1732374652601,-1000.0,0.00021121,2]
[343127436,1732374652611,-160.697371,0.00021209,2]
[343127437,1732374652620,-754.812936,0.00021288,2]
[343127438,1732374652629,-500.0,0.00021366,2]
[343127439,1732374652638,-6575.11,0.00021366,2]
[343127440,1732374652647,-1627.77,0.00021366,2]
[343127441,1732374652656,-4864.52,0.00021366,2]
[343127442,1732374652665,-790.18,0.00021366,2]
[343127443,1732374652674,-1062.44,0.00021366,2]
[343127444,1732374652683,-500.0,0.00021366,2]
[343127445,1732374652693,-500.0,0.00021366,2]
[343127446,1732374652702,-28097.82,0.00021366,2]
[343127447,1732374652711,-500.0,0.00021367,2]
[343127448,1732374652720,-565.5,0.00021367,2]
[343127449,1732374652729,-500.0,0.00021367,2]
[343127450,1732374652738,-924.31,0.00021367,2]
[343127451,1732374652747,-500.0,0.00021367,2]
[343127452,1732374652847,-1065.21,0.00021367,2]
[343127453,1732374652857,-500.0,0.00021367,2]
[343127454,1732374652867,-590.32,0.00021367,2]
[343127455,1732374652876,-500.0,0.00021367,2]
[343127456,1732374652886,-500.0,0.00021367,2]
[343127457,1732374652895,-500.0,0.00021367,2]
[343127458,1732374652905,-772.55,0.00021367,2]
[343127459,1732374652915,-1429.5,0.00021367,2]
[343127460,1732374652926,-503.58,0.00021367,2]
[343127461,1732374652936,-794.5,0.00021367,2]
[343127462,1732374652947,-500.0,0.00021367,2]
[343127463,1732374652958,-500.0,0.00021368,2]
[343127464,1732374652968,-500.0,0.00021368,2]
[343127465,1732374652978,-1292.96,0.00021368,2]
[343127466,1732374652988,-500.0,0.00021368,2]
[343127467,1732374652998,-500.0,0.00021368,2]
[343127468,1732374653007,-866.31,0.00021368,2]
[343127469,1732374653018,-900.83,0.00021368,2]
[343127470,1732374653028,-500.0,0.00021368,2]
[343127471,1732374653038,-588.91,0.00021368,2]
[343127472,1732374653049,-500.0,0.00021368,2]
[343127473,1732374653058,-200.0,0.00021368,2]
[343127474,1732374653068,-500.0,0.00021368,2]
[343127475,1732374653078,-500.0,0.00021368,2]
[343127476,1732374653088,-500.0,0.00021368,2]
[343127477,1732374653098,-756.3,0.00021368,2]
[343127478,1732374653108,-500.0,0.00021368,2]
[343127479,1732374653118,-599.9,0.00021368,2]
[343127480,1732374653128,-500.0,0.00021368,2]
[343127481,1732374653138,-1423.82,0.00021368,2]
[343127482,1732374653147,-919.07,0.00021368,2]
[343127483,1732374653157,-500.0,0.00021368,2]
[343127484,1732374653167,-882.73,0.00021368,2]
[343127485,1732374653177,-542.12,0.00021368,2]
[343127486,1732374653187,-500.0,0.00021368,2]
[343127487,1732374653197,-839.51,0.00021368,2]
[343127488,1732374653207,-268.96060271,0.00021368,2]
[343127489,1732374653217,-564.68,0.00021368,2]
[343127490,1732374653227,-516.89,0.00021368,2]
[343127491,1732374653237,-500.0,0.00021368,2]
[343127492,1732374653247,-582.20451952,0.00021368,2]
[343127493,1732374653256,-530.03,0.00021368,2]
[343127494,1732374653270,-1200.49,0.00021368,2]
[343127495,1732374653279,-500.0,0.00021368,2]
[343127496,1732374653289,-701.18,0.00021368,2]
[343127497,1732374653298,-500.0,0.00021368,2]
[343127498,1732374653307,-500.0,0.00021368,2]
[343127499,1732374653317,-500.0,0.00021368,2]
[343127500,1732374653326,-500.0,0.00021368,2]
[343127501,1732374653336,-805.35,0.00021368,2]
[343127502,1732374653346,-500.0,0.00021368,2]
[343127503,1732374653360,-500.0,0.00021368,2]
[343127504,1732374653369,-702.98,0.00021368,2]
[343127505,1732374653379,-500.0,0.00021368,2]
[343127506,1732374653388,-500.0,0.00021368,2]
[343127507,1732374653397,-530.74,0.00021368,2]
[343127508,1732374653408,-500.0,0.00021368,2]
[343127509,1732374653418,-500.0,0.00021368,2]
[343127510,1732374653429,-500.0,0.00021368,2]
[343127511,1732374653440,-506.54,0.00021368,2]
[343127512,1732374653450,-500.0,0.00021368,2]
[343127513,1732374653460,-500.0,0.00021368,2]
[343127514,1732374653469,-529.24,0.00021368,2]
[343127515,1732374653479,-504.27,0.00021368,2]
[343127516,1732374653488,-484.50197059,0.00021368,2]
[343127517,1732374653498,-763.16,0.00021368,2]
[343127518,1732374653507,-3725.55,0.00021368,2]
[343127519,1732374653519,-1363.25,0.00021368,2]
[343127520,1732374653529,-500.0,0.00021368,2]
[343127521,1732374653539,-623.97,0.00021368,2]
[343127522,1732374653548,-831.32,0.00021368,2]
[343127523,1732374653558,-500.0,0.00021368,2]
[343127524,1732374653567,-2196.85,0.00021368,2]
[343127525,1732374653576,-500.0,0.00021368,2]
[343127526,1732374653586,-1338.54,0.00021368,2]
[343127527,1732374653595,-772.07,0.00021368,2]
[343127528,1732374653604,-500.0,0.00021368,2]
[343127529,1732374653614,-1854.4,0.00021368,2]
[343127530,1732374653623,-504.74,0.00021368,2]
[343127531,1732374653632,-743.82,0.00021368,2]
[343127532,1732374653641,-500.0,0.00021368,2]
[343127533,1732374653651,-500.0,0.00021368,2]
[343127534,1732374653660,-665.84,0.00021368,2]
[343127535,1732374653670,-541.59,0.00021368,2]
[343127536,1732374653679,-500.0,0.00021368,2]
[343127537,1732374653689,-11883.1,0.00021368,2]
[343127538,1732374653698,-162.44155755,0.00021368,2]
[343127539,1732374653827,-388.30844245,0.00021368,2]
[343127540,1732374653837,-167.09421515,0.00021368,2]
[343127541,1732374653849,-332.90578485,0.00021368,2]
[343127542,1732374653859,-3492.86,0.00021368,2]
[343127543,1732374653868,-500.0,0.00021368,2]
[343127544,1732374653878,-912.61,0.00021368,2]
[343127545,1732374653888,-612.98,0.00021368,2]
[343127546,1732374653898,-500.0,0.00021368,2]
[343127547,1732374653907,-500.0,0.00021368,2]
[343127548,1732374653916,-500.0,0.00021368,2]
[343127549,1732374653926,-626.69,0.00021368,2]
[343127550,1732374653935,-500.0,0.00021368,2]
[343127551,1732374653945,-500.0,0.00021368,2]
[343127552,1732374653955,-550.36,0.00021368,2]
[343127553,1732374653965,-607.34732323,0.00021368,2]
[343127554,1732374653975,-500.0,0.00021368,2]
[343127555,1732374653985,-2020.42,0.00021368,2]
[343127556,1732374653995,-754.812936,0.00021479,2]
[343127557,1732374654004,-213.5156519,0.000215,2]
[343127558,1732374654015,-213.51565189,0.000215,2]
[343127559,1732374654025,-337.92481475,0.00021522,2]
[343127560,1732374654034,-340.41454946,0.00021522,2]
[343127561,1732374654045,-743.76623087,0.00021522,2]
[343127562,1732374654054,-227.0,0.00021542,2]
[343127563,1732374654064,-655.61459261,0.0002155,2]
[343127564,1732374654075,-160.80507585,0.00021557,2]
[343127565,1732374654085,-500.0,0.0002164,2]
[343127566,1732374654095,-6575.11,0.0002164,2]
[343127567,1732374654105,-1627.77,0.0002164,2]
[343127568,1732374654115,-4864.52,0.0002164,2]
[343127569,1732374654124,-790.18,0.0002164,2]
[343127570,1732374654133,-1062.44,0.0002164,2]
[343127571,1732374654143,-571.01248402,0.0002164,2]
[343127572,1732374654152,-500.0,0.0002164,2]
[343127573,1732374654162,-28097.82,0.0002164,2]
[343127574,1732374654172,-500.0,0.00021641,2]
[343127575,1732374654181,-565.5,0.00021641,2]
[343127576,1732374654191,-500.0,0.00021641,2]
[343127577,1732374654201,-924.31,0.00021641,2]
[343127578,1732374654210,-500.0,0.00021641,2]
[343127579,1732374654220,-1065.21,0.00021641,2]
[343127580,1732374654230,-500.0,0.00021641,2]
[343127581,1732374654239,-590.32,0.00021641,2]
[343127582,1732374654248,-500.0,0.00021641,2]
[343127583,1732374654258,-500.0,0.00021641,2]
[343127584,1732374654272,-500.0,0.00021641,2]
[343127585,1732374654282,-772.55,0.00021641,2]
[343127586,1732374654292,-1429.5,0.00021641,2]
[343127587,1732374654302,-503.58,0.00021641,2]
[343127588,1732374654311,-794.5,0.00021641,2]
[343127589,1732374654321,-500.0,0.00021641,2]
[343127590,1732374654331,-500.0,0.00021642,2]
[343127591,1732374654345,-500.0,0.00021642,2]
[343127592,1732374654355,-1292.96,0.00021642,2]
[343127593,1732374654364,-500.0,0.00021642,2]
[343127594,1732374654373,-500.0,0.00021642,2]
[343127595,1732374654384,-866.31,0.00021642,2]
[343127596,1732374654393,-900.83,0.00021642,2]
[343127597,1732374654403,-500.0,0.00021642,2]
[343127598,1732374654413,-588.91,0.00021642,2]
[343127599,1732374654422,-500.0,0.00021642,2]
[343127600,1732374654431,-200.0,0.00021642,2]
[343127601,1732374654441,-500.0,0.00021642,2]
[343127602,1732374654451,-500.0,0.00021642,2]
[343127603,1732374654460,-500.0,0.00021642,2]
[343127604,1732374654470,-756.3,0.00021642,2]
[343127605,1732374654479,-500.0,0.00021642,2]
[343127606,1732374654489,-599.9,0.00021642,2]
[343127607,1732374654499,-500.0,0.00021642,2]
[343127608,1732374654508,-1423.82,0.00021642,2]
[343127609,1732374654522,-919.07,0.00021642,2]
[343127610,1732374654531,-500.0,0.00021642,2]
[343127611,1732374654542,-882.73,0.00021642,2]
[343127612,1732374654552,-542.12,0.00021642,2]
[343127613,1732374654562,-500.0,0.00021642,2]
[343127614,1732374654572,-839.51,0.00021642,2]
[343127615,1732374654581,-564.68,0.00021642,2]
[343127616,1732374654591,-516.89,0.00021642,2]
[343127617,1732374654600,-500.0,0.00021642,2]
[343127618,1732374654609,-1200.49,0.00021642,2]
[343127619,1732374654619,-530.03,0.00021642,2]
[343127620,1732374654629,-500.0,0.00021642,2]
[343127621,1732374654639,-701.18,0.00021642,2]
[343127622,1732374654648,-500.0,0.00021642,2]
[343127623,1732374654658,-500.0,0.00021642,2]
[343127624,1732374654668,-500.0,0.00021642,2]
[343127625,1732374654677,-500.0,0.00021642,2]
[343127626,1732374654687,-805.35,0.00021642,2]
[343127627,1732374654697,-275.10805231,0.00021642,2]
[343127640,1732375244197,6106.56826402,0.00028702,120]
[343127641,1732375292551,320.0,0.00028,120]
[343127643,1732375345431,33.39279,0.00027,120]
[343127644,1732375367975,11511.232957,0.00025999,60]
[343127811,1732375832048,-1649.0625121,0.00013973,2]
[343127812,1732375832060,-793.4,0.00013973,2]
[343127813,1732375832072,-526.2477805,0.00013973,2]
[343127814,1732375832081,-160.697371,0.00013973,2]
[343127815,1732375832092,-359.609416,0.00018669,2]
[343127816,1732375832101,-7438.9909156,0.00018674,2]
[343127817,1732375832238,-398.795909,0.00018744,2]
[343127818,1732375832249,-504.0538845,0.00018814,2]
[343127819,1732375832259,-165.191483,0.00019178,2]
[343127820,1732375832269,-213.33205762,0.000192,2]
[343127821,1732375832279,-213.33205761,0.000192,2]
[343127822,1732375832290,-359.609416,0.00019354,2]
[343127823,1732375832299,-160.80507585,0.00019893,2]
[343127824,1732375832309,-500.0,0.00019991,2]
[343127825,1732375832319,-500.0,0.00019992,2]
[343127826,1732375832329,-4657.37,0.00019992,2]
[343127827,1732375832339,-1153.0,0.00019992,2]
[343127828,1732375832349,-3445.7,0.00019992,2]
[343127829,1732375832359,-559.71,0.00019992,2]
[343127830,1732375832370,-752.56,0.00019992,2]
[343127831,1732375832380,-500.0,0.00019992,2]
[343127832,1732375832390,-165.03654424,0.00019993,2]
[343127833,1732375832399,-19902.62,0.00019993,2]
[343127834,1732375832408,-500.0,0.00019993,2]
[343127835,1732375832418,-500.0,0.00019993,2]
[343127836,1732375832428,-654.72,0.00019993,2]
[343127837,1732375832438,-500.0,0.00019993,2]
[343127838,1732375832447,-754.52,0.00019993,2]
[343127839,1732375832456,-500.0,0.00019993,2]
[343127841,1732375832466,-500.0,0.00019993,2]
[343127843,1732375832477,-500.0,0.00019993,2]
[343127844,1732375832486,-500.0,0.00019993,2]